bitfinex/quotes_BTCUSD_20220201
["timestamp","ask_amount","ask_price","bid_price","bid_amount"]
[1643734347091,0.39891718,39036.0,39035.0,0.00150193]
[1643734347292,0.79665918,39036.0,39035.0,0.00150193]
[1643734347490,0.86072618,39036.0,39035.0,0.00150193]
[1643734347893,0.07984386,39030.0,39026.0,0.05]
[1643734348090,0.12492074,39027.0,39026.0,0.05]
[1643734348490,0.17632074,39027.0,39026.0,0.05]
[1643734348956,0.0514,39027.0,39026.0,0.05]
[1643734349157,0.0514,39027.0,39024.0,0.12812872]
[1643734349356,0.0514,39027.0,39025.0,0.00150244]
[1643734350356,0.0514,39027.0,39025.0,0.064062]
[1643734351358,0.0514,39027.0,39026.0,1.21668059]
[1643734351556,0.0514,39027.0,39026.0,0.17500759]
[1643734351757,0.0514,39027.0,39026.0,0.62500759]
[1643734351958,0.0514,39034.0,39029.0,0.064054]
[1643734352158,0.0514,39034.0,39030.0,0.064055]
[1643734352159,0.17823137,39034.0,39030.0,0.064055]
[1643734352789,0.17823137,39034.0,39030.0,0.0655573]
[1643734353192,0.17823137,39034.0,39030.0,0.0015023]
[1643734353790,0.17823137,39034.0,39029.0,0.12610168]
[1643734353991,0.17823137,39034.0,39030.0,0.0015023]
[1643734354190,0.347742,39033.0,39030.0,0.0015023]
[1643734354391,0.0514,39032.0,39030.0,0.0015023]
[1643734355090,0.0514,39032.0,39027.0,0.256218]
[1643734355291,0.13275271,39031.0,39029.0,0.00150232]
[1643734355490,0.0514,39030.0,39029.0,0.00150232]
[1643734356349,0.0514,39030.0,39027.0,0.128108]
[1643734356545,0.0514,39030.0,39028.0,0.00150235]
[1643734357546,0.0514,39030.0,39024.0,0.27499633]
[1643734357745,0.0514,39030.0,39027.0,0.00150236]
[1643734358247,0.13275271,39031.0,39027.0,0.00150236]
[1643734358450,0.0514,39030.0,39027.0,0.00150236]
[1643734358650,0.0514,39030.0,39023.0,0.05]
[1643734358847,0.0514,39030.0,39027.0,0.00150237]
[1643734359447,0.0514,39030.0,39027.0,0.24558504]
[1643734359889,0.1,39037.0,39027.0,0.24408267]
[1643734360093,0.29094448,39037.0,39027.0,0.24558505]
[1643734360293,0.59640641,39037.0,39027.0,0.24558505]
[1643734360791,0.45686193,39037.0,39027.0,0.24558505]
[1643734360994,0.30686193,39037.0,39027.0,0.24408267]
[1643734361194,0.30686193,39037.0,39030.0,0.0015023]
[1643734361393,0.35686193,39037.0,39030.0,0.0015023]
[1643734361592,0.347742,39036.0,39030.0,0.0015023]
[1643734362191,0.347742,39036.0,39027.0,0.24408267]
[1643734362391,0.35686193,39037.0,39031.0,0.00150227]
[1643734362592,0.347742,39036.0,39031.0,0.00150227]
[1643734363392,0.40410442,39037.0,39029.0,0.06405579]
[1643734363652,0.40410442,39037.0,39032.0,0.00150226]
[1643734363848,0.347742,39036.0,39032.0,0.00150226]
[1643734364045,0.38603334,39036.0,39032.0,0.00150226]
[1643734364646,0.38603334,39036.0,39028.0,0.064061]
[1643734364845,0.09168749,39035.0,39032.0,0.00150225]
[1643734365046,0.11043179,39033.0,39032.0,0.00150225]
[1643734365848,0.11043179,39033.0,39027.0,0.02158527]
[1643734366048,0.0514,39032.0,39031.0,0.00150228]
[1643734367150,0.0514,39032.0,39027.0,0.064062]
[1643734367392,0.0514,39032.0,39030.0,0.0015023]
[1643734368196,0.0514,39032.0,39024.0,0.26481445]
[1643734368398,0.0514,39032.0,39029.0,0.00150231]
[1643734368598,0.0514,39032.0,39025.0,0.23072796]
[1643734368599,0.0514,39032.0,39025.0,0.14826358]
[1643734368799,0.0514,39032.0,39026.0,0.06405839]
[1643734369496,0.0514,39032.0,39025.0,0.128117]
[1643734369696,0.0514,39032.0,39022.0,0.25540594]
[1643734369895,0.0514,39032.0,39024.0,0.06406434]
[1643734371352,0.0514,39032.0,39023.0,0.064069]
[1643734371549,0.0514,39032.0,39021.0,0.05]
[1643734371948,0.0514,39032.0,39021.0,0.21680139]
[1643734372148,0.0514,39032.0,39021.0,0.05]
[1643734372149,0.115469,39032.0,39021.0,0.05]
[1643734372450,0.11274932,39027.0,39022.0,0.064069]
[1643734372648,0.11274932,39027.0,39021.0,0.05]
[1643734372649,0.0514,39026.0,39021.0,0.05]
[1643734373249,0.00113079,39035.0,39022.0,0.00166966]
[1643734373450,0.0514,39031.0,39024.0,0.12811046]
[1643734373749,0.0514,39032.0,39027.0,0.06405519]
[1643734374553,0.0514,39032.0,39027.0,0.0657247]
[1643734375006,0.0514,39032.0,39027.0,0.00166951]
[1643734375405,0.0514,39032.0,39025.0,0.128112]
[1643734375606,0.0514,39032.0,39027.0,0.00166951]
[1643734376610,0.0514,39032.0,39025.0,0.128112]
[1643734376806,0.0514,39032.0,39027.0,0.00166951]
[1643734377608,0.0514,39032.0,39027.0,0.06573051]
[1643734377808,0.0514,39032.0,39027.0,0.064061]
[1643734378009,0.0514,39032.0,39027.0,0.06573051]
[1643734379040,0.0514,39032.0,39027.0,0.064061]
[1643734379244,0.0514,39032.0,39027.0,0.06573051]
[1643734380243,0.0514,39032.0,39027.0,0.064061]
[1643734380452,0.0514,39032.0,39027.0,0.06573051]
[1643734380644,0.00113096,39035.0,39027.0,0.06573051]
[1643734380843,0.00113096,39035.0,39028.0,0.06405515]
[1643734380844,0.01026,39033.0,39028.0,0.06405515]
[1643734381244,0.00113096,39035.0,39029.0,0.12811]
[1643734381543,0.30546193,39037.0,39029.0,0.064055]
[1643734381746,0.00113099,39035.0,39029.0,0.064055]
[1643734381943,0.00113099,39035.0,39030.0,0.16548136]
[1643734382145,0.00113099,39035.0,39031.0,0.17728139]
[1643734382402,0.00113099,39035.0,39032.0,0.064049]
[1643734382603,0.1351,39042.0,39033.0,0.16567803]
[1643734382802,0.0856124,39043.0,39033.0,0.16611057]
[1643734382803,0.347742,39041.0,39033.0,0.16611057]
[1643734383003,0.00113108,39035.0,39033.0,0.16611057]
[1643734383203,0.00113108,39035.0,39032.0,0.064049]
[1643734383402,0.00113108,39035.0,39033.0,0.29534918]
[1643734383604,0.00113108,39035.0,39034.0,0.16830797]
[1643734383802,0.11446238,39042.0,39034.0,0.16830797]
[1643734384003,0.16586238,39042.0,39036.0,0.064049]
[1643734384202,0.347742,39041.0,39036.0,0.064049]
[1643734385204,0.03421613,39040.0,39036.0,0.064049]
[1643734385505,0.347742,39039.0,39033.0,0.128098]
[1643734385704,0.397742,39039.0,39033.0,0.128098]
[1643734386148,0.13905189,39036.0,39033.0,0.128098]
[1643734386545,0.13905189,39036.0,39032.0,0.01874458]
[1643734387744,0.14018297,39036.0,39032.0,0.08280158]
[1643734388744,0.13893971,39036.0,39032.0,0.08280158]
[1643734388942,0.14007079,39036.0,39032.0,0.08280158]
[1643734389343,0.00113108,39036.0,39032.0,0.08280158]
[1643734390005,0.00113108,39036.0,39033.0,0.16745647]
[1643734390204,0.00113108,39036.0,39032.0,0.08280158]
[1643734390407,0.00113108,39036.0,39032.0,0.064057]
[1643734390604,0.00113108,39036.0,39034.0,0.06405311]
[1643734391008,0.0514,39038.0,39034.0,0.06405311]
[1643734391207,0.00113108,39037.0,39034.0,0.06405311]
[1643734392207,0.0514,39038.0,39034.0,0.06405311]
[1643734392510,0.00113108,39037.0,39034.0,0.12810611]
[1643734393507,0.061659,39038.0,39034.0,0.12810611]
[1643734393748,0.00113108,39037.0,39034.0,0.12810611]
[1643734393948,0.00113108,39037.0,39034.0,0.29487991]
[1643734394151,0.00113108,39037.0,39034.0,0.12779611]
[1643734394349,0.00113108,39037.0,39034.0,0.29745014]
[1643734394752,0.061659,39038.0,39034.0,0.29745014]
[1643734394950,0.00113108,39037.0,39034.0,0.12779611]
[1643734395154,0.05279008,39038.0,39034.0,0.12779611]
[1643734397805,0.0514,39038.0,39034.0,0.12779611]
[1643734400007,0.0514,39038.0,39034.0,0.06374311]
[1643734401842,0.0514,39038.0,39030.0,0.25621327]
[1643734401843,0.347742,39037.0,39030.0,0.25621327]
[1643734402043,0.0514,39038.0,39032.0,0.06555592]
[1643734403049,0.0514,39038.0,39032.0,0.12810607]
[1643734403050,0.15619304,39036.0,39032.0,0.12810607]
[1643734403247,0.15619304,39036.0,39032.0,0.12960791]
[1643734403647,0.0514,39038.0,39032.0,0.12960791]
[1643734404249,0.0514,39038.0,39032.0,0.12810607]
[1643734404250,0.010259,39037.0,39032.0,0.12810607]
[1643734404450,0.010259,39037.0,39032.0,0.1296079]
[1643734404650,0.0514,39038.0,39032.0,0.1296079]
[1643734404893,0.0514,39038.0,39033.0,0.16531413]
[1643734405194,0.0514,39038.0,39032.0,0.1296079]
[1643734405697,0.0514,39038.0,39033.0,0.16879804]
[1643734405895,0.0514,39038.0,39034.0,0.064049]
[1643734406094,0.0514,39038.0,39034.0,0.12809729]
[1643734408495,0.00112822,39039.0,39035.0,0.17388154]
[1643734409156,0.064049,39042.0,39034.0,0.25618885]
[1643734409453,0.00112825,39039.0,39036.0,0.12809178]
[1643734409954,0.00112825,39039.0,39036.0,0.064046]
[1643734410353,0.06405,39040.0,39036.0,0.064046]
[1643734410556,0.00112825,39039.0,39036.0,0.064046]
[1643734411155,0.00112825,39039.0,39036.0,0.061457]
[1643734411454,0.06405,39040.0,39036.0,0.061457]
[1643734411654,0.00112825,39039.0,39036.0,0.061457]
[1643734412698,0.074308,39040.0,39036.0,0.061457]
[1643734412898,0.00112825,39039.0,39036.0,0.061457]
[1643734413899,0.074308,39040.0,39036.0,0.061457]
[1643734414102,0.00112825,39039.0,39036.0,0.061457]
[1643734415200,0.0146128,39040.0,39036.0,0.061457]
[1643734415404,0.00112825,39039.0,39036.0,0.061457]
[1643734416246,0.00116792,39039.0,39036.0,0.061457]
[1643734416445,0.00229617,39039.0,39036.0,0.061457]
[1643734417446,0.00116792,39039.0,39036.0,0.061457]
[1643734417847,0.00229617,39039.0,39036.0,0.061457]
[1643734418046,0.00229617,39039.0,39036.0,0.22645066]
[1643734418649,0.00116792,39039.0,39036.0,0.22645066]
[1643734418847,0.00229617,39039.0,39036.0,0.22645066]
[1643734419047,0.00229617,39039.0,39036.0,0.061457]
[1643734419910,0.00116792,39039.0,39036.0,0.061457]
[1643734420111,0.00229617,39039.0,39036.0,0.2948006]
[1643734420310,0.00229617,39039.0,39036.0,0.125504]
[1643734421113,0.00116792,39039.0,39036.0,0.125504]
[1643734421317,0.15257504,39037.0,39036.0,0.12540802]
[1643734421513,0.15374296,39037.0,39036.0,0.12540802]
[1643734421715,0.00116792,39037.0,39036.0,0.12540802]
[1643734422916,0.00116792,39037.0,39036.0,0.57540802]
[1643734423116,0.00116792,39037.0,39036.0,0.12540802]
[1643734423316,0.00096754,39037.0,39036.0,0.12540802]
[1643734423757,0.00096754,39037.0,39036.0,0.29796289]
[1643734424357,0.00096754,39037.0,39036.0,0.30627789]
[1643734424956,0.00096754,39037.0,39036.0,0.75627789]
[1643734425456,0.00096754,39037.0,39036.0,1.44392349]
[1643734426057,0.00096754,39037.0,39036.0,0.99392349]
[1643734426259,0.00096754,39037.0,39036.0,0.82893524]
[1643734426659,0.00096754,39037.0,39036.0,0.65638037]
[1643734426857,0.00096754,39037.0,39036.0,0.82475299]
[1643734427906,0.00096754,39037.0,39036.0,1.12475299]
[1643734428107,0.00096754,39037.0,39036.0,0.82475299]
[1643734428510,0.00096754,39037.0,39036.0,0.65638037]
[1643734429110,0.00096754,39037.0,39036.0,0.65566958]
[1643734429908,0.00096754,39037.0,39036.0,1.05566958]
[1643734431155,0.00096754,39037.0,39036.0,0.65373558]
[1643734431549,0.00096754,39037.0,39036.0,0.81855613]
[1643734431754,0.00096754,39037.0,39036.0,0.81901169]
[1643734431951,0.00096754,39037.0,39036.0,0.86950848]
[1643734432753,0.00096754,39037.0,39036.0,0.70373558]
[1643734433552,0.00096754,39037.0,39036.0,0.87072324]
[1643734433752,0.00096754,39037.0,39036.0,0.82072324]
[1643734433952,0.00096754,39037.0,39036.0,1.27072324]
[1643734434153,0.00096754,39037.0,39036.0,0.82072324]
[1643734434553,0.00096754,39037.0,39036.0,0.81775324]
[1643734434754,0.00096754,39037.0,39036.0,0.86625324]
[1643734435000,0.00096754,39037.0,39036.0,1.56550324]
[1643734435200,0.00096754,39037.0,39036.0,0.86510324]
[1643734435400,0.00096754,39037.0,39036.0,0.86470324]
[1643734435600,0.00096754,39037.0,39036.0,0.86430324]
[1643734435802,0.00096754,39037.0,39036.0,1.46390324]
[1643734436000,0.00096754,39037.0,39036.0,1.46350324]
[1643734436300,0.00096754,39037.0,39036.0,1.46310324]
[1643734436499,0.00096754,39037.0,39036.0,0.86270324]
[1643734436702,0.00096754,39037.0,39036.0,0.86230324]
[1643734436906,0.00096754,39037.0,39036.0,0.86190324]
[1643734437101,0.00096754,39037.0,39036.0,0.69451558]
[1643734437304,0.00096754,39037.0,39036.0,0.85968795]
[1643734437502,0.00096754,39037.0,39036.0,0.85928795]
[1643734437704,0.00096754,39037.0,39036.0,0.85888795]
[1643734437902,0.00096754,39037.0,39036.0,0.69173278]
[1643734438850,0.00096754,39037.0,39036.0,1.04173278]
[1643734439648,0.1105011,39042.0,39037.0,0.06404061]
[1643734439849,0.1105011,39042.0,39038.0,0.06404]
[1643734440048,0.1105011,39042.0,39038.0,0.12808]
[1643734440250,0.1105011,39042.0,39038.0,0.25615795]
[1643734440749,0.10373844,39042.0,39040.0,0.064039]
[1643734441149,0.09249082,39044.0,39040.0,0.064039]
[1643734441350,0.09249082,39044.0,39041.0,0.22984422]
[1643734441551,0.09249082,39044.0,39041.0,0.064038]
[1643734441749,0.04109082,39044.0,39041.0,0.064038]
[1643734441952,0.04109082,39044.0,39042.0,2.21725637]
[1643734442150,0.04109082,39044.0,39043.0,0.064036]
[1643734443798,0.04109082,39044.0,39043.0,0.58669335]
[1643734447464,0.04109082,39044.0,39043.0,0.23649757]
[1643734447864,0.04109082,39044.0,39043.0,0.07234]
[1643734448563,0.03594688,39044.0,39043.0,0.07234]
[1643734450397,0.03594688,39044.0,39043.0,0.23895519]
[1643734451900,0.03594688,39044.0,39043.0,0.07234]
[1643734452309,0.03594688,39044.0,39043.0,0.23817951]
[1643734452705,0.03594688,39044.0,39043.0,0.28817951]
[1643734452901,0.03594688,39044.0,39043.0,0.12234]
[1643734453101,0.03594688,39044.0,39043.0,0.28890666]
[1643734454266,0.03594688,39044.0,39043.0,0.28616407]
[1643734454868,0.03594688,39044.0,39043.0,0.12234]
[1643734455065,0.03594688,39044.0,39043.0,0.28214924]
[1643734455267,0.03594688,39044.0,39043.0,0.11734]
[1643734455471,0.03594688,39044.0,39043.0,0.28087277]
[1643734455668,0.03594688,39044.0,39043.0,0.88060381]
[1643734456470,0.03594688,39044.0,39043.0,0.28060381]
[1643734456670,0.03594688,39044.0,39043.0,0.11707104]
[1643734456871,0.03594688,39044.0,39043.0,0.11207104]
[1643734457072,0.03594688,39044.0,39043.0,0.27767097]
[1643734457521,0.03594688,39044.0,39040.0,1.343e-05]
[1643734457713,0.13610481,39042.0,39040.0,1.343e-05]
[1643734457915,0.399103,39041.0,39040.0,1.343e-05]
[1643734459915,0.54314301,39041.0,39040.0,1.343e-05]
[1643734460518,0.399103,39041.0,39040.0,1.343e-05]
[1643734462052,0.0514,39041.0,39040.0,1.343e-05]
[1643734462851,0.0514,39041.0,39040.0,0.13124173]
[1643734464052,0.00112777,39042.0,39040.0,0.19527491]
[1643734464350,0.03594688,39044.0,39041.0,0.05]
[1643734464551,0.00112777,39043.0,39041.0,0.05]
[1643734465406,0.00112777,39043.0,39042.0,0.064034]
[1643734465604,0.08734688,39044.0,39040.0,0.25930873]
[1643734465804,0.08847465,39044.0,39040.0,0.25930873]
[1643734466804,0.08734688,39044.0,39040.0,0.25930873]
[1643734467005,0.06404,39043.0,39040.0,0.25930873]
[1643734468106,0.00112777,39043.0,39040.0,0.25930873]
[1643734468951,0.00112777,39043.0,39040.0,0.32334132]
[1643734469149,0.08734688,39044.0,39040.0,0.32334132]
[1643734469350,0.00112777,39043.0,39040.0,0.32334132]
[1643734469550,0.00112777,39043.0,39041.0,0.178062]
[1643734469949,0.00112777,39043.0,39041.0,0.128062]
[1643734470352,0.03594688,39044.0,39041.0,0.192095]
[1643734470549,0.03707465,39044.0,39041.0,0.192095]
[1643734470751,0.10111365,39044.0,39041.0,0.192095]
[1643734471550,0.15138588,39044.0,39041.0,0.192095]
[1643734471751,0.15251365,39044.0,39041.0,0.192095]
[1643734471950,0.15251365,39044.0,39040.0,1.343e-05]
[1643734472152,0.35297919,39044.0,39040.0,1.343e-05]
[1643734472405,0.15251365,39044.0,39040.0,1.343e-05]
[1643734472605,0.347703,39043.0,39040.0,1.343e-05]
[1643734472808,0.064043,39043.0,39040.0,1.343e-05]
[1643734474106,0.06517077,39043.0,39040.0,0.06405343]
[1643734475108,0.06517077,39043.0,39040.0,1.343e-05]
[1643734475109,0.0514,39042.0,39040.0,1.343e-05]
[1643734478360,0.0514,39042.0,39040.0,0.06405243]
[1643734478657,0.0514,39042.0,39040.0,0.06355243]
[1643734478854,0.0399,39042.0,39040.0,0.06355243]
[1643734480407,0.0399,39042.0,39041.0,0.16668009]
[1643734480605,0.00112777,39043.0,39041.0,0.16668009]
[1643734481206,0.03594688,39044.0,39041.0,0.064036]
[1643734481405,0.03707465,39044.0,39042.0,0.064036]
[1643734482008,0.03707465,39044.0,39043.0,0.16610702]
[1643734482407,0.03594688,39044.0,39042.0,0.22894838]
[1643734482608,0.03594688,39044.0,39042.0,0.22866805]
[1643734483010,0.03594688,39044.0,39042.0,0.22989261]
[1643734483310,0.03594688,39044.0,39042.0,0.064036]
[1643734483512,0.03594688,39044.0,39042.0,0.22853927]
[1643734483755,0.03594688,39044.0,39042.0,0.064036]
[1643734483953,0.03594688,39044.0,39043.0,0.16639759]
[1643734484155,0.03594688,39044.0,39042.0,0.064036]
[1643734486657,0.03594688,39044.0,39042.0,0.27879041]
[1643734486857,0.03594688,39044.0,39042.0,0.58669335]
[1643734487903,0.03594688,39044.0,39042.0,0.52265735]
[1643734488103,0.03594688,39044.0,39042.0,0.58669535]
[1643734488708,0.03758756,39044.0,39042.0,0.58669535]
[1643734491006,0.0514,39043.0,39042.0,0.52265735]
[1643734491273,0.40074368,39043.0,39042.0,0.52265735]
[1643734493567,0.40074368,39043.0,39042.0,0.52223735]
[1643734493770,0.47822102,39043.0,39042.0,0.52181735]
[1643734493969,0.40074368,39043.0,39042.0,0.52139735]
[1643734494369,0.40074368,39043.0,39042.0,0.52097735]
[1643734495003,0.05237876,39043.0,39042.0,0.52097735]
[1643734495203,0.05237876,39043.0,39042.0,0.52055735]
[1643734495503,0.05237876,39043.0,39042.0,0.52013735]
[1643734495904,0.40008176,39043.0,39042.0,0.52013735]
[1643734498962,0.05237876,39043.0,39042.0,0.52013735]
[1643734499158,0.40008176,39043.0,39042.0,0.52013735]
[1643734500560,0.00164068,39043.0,39042.0,0.52013735]
[1643734500760,0.00164068,39043.0,39042.0,1.27013735]
[1643734501562,0.00164068,39043.0,39042.0,0.57013735]
[1643734501759,0.00164068,39043.0,39042.0,0.98417435]
[1643734502404,0.00164068,39043.0,39042.0,0.63417435]
[1643734505007,0.00164068,39043.0,39042.0,0.57013735]
[1643734505506,0.00164068,39043.0,39042.0,0.52013735]
[1643734506660,0.00164068,39043.0,39040.0,0.098]
[1643734506661,1.27950448,39043.0,39040.0,0.098]
[1643734506856,1.9429,39041.0,39033.0,0.50150422]
[1643734507054,1.2429,39034.0,39033.0,0.00150422]
[1643734507253,1.04364368,39034.0,39033.0,0.00150422]
[1643734507453,1.14124606,39034.0,39029.0,0.24649722]
[1643734507654,0.347703,39033.0,39032.0,0.00094021]
[1643734507857,1.04364368,39033.0,39032.0,0.00094021]
[1643734508654,1.04364368,39033.0,39024.0,0.3707]
[1643734508855,0.22025516,39032.0,39031.0,0.00094023]
[1643734509055,0.52888068,39032.0,39031.0,0.00094023]
[1643734509900,0.52888068,39032.0,39024.0,0.3707]
[1643734510103,0.18117768,39032.0,39030.0,0.00150291]
[1643734510303,0.347703,39031.0,39030.0,0.00150291]
[1643734510503,0.40074368,39031.0,39030.0,0.00150291]
[1643734511203,0.40074368,39031.0,39024.0,0.484765]
[1643734511204,0.064066,39029.0,39024.0,0.484765]
[1643734511404,0.0514,39028.0,39024.0,0.484765]
[1643734511604,0.05304068,39028.0,39025.0,0.01925528]
[1643734511808,0.05304068,39028.0,39020.0,0.763531]
[1643734512004,0.05304068,39028.0,39020.0,0.178131]
[1643734512205,0.11710868,39028.0,39020.0,0.05]
[1643734512406,0.11710868,39028.0,39021.0,0.064068]
[1643734512604,0.38870738,39028.0,39022.0,0.00150325]
[1643734513406,0.38870738,39028.0,39022.0,0.06557125]
[1643734513407,0.11710868,39028.0,39022.0,0.06557125]
[1643734513664,0.11710868,39028.0,39023.0,0.00150323]
[1643734513858,0.05304068,39028.0,39024.0,0.064063]
[1643734514556,0.05304068,39028.0,39025.0,0.34181244]
[1643734514758,0.00164068,39028.0,39025.0,0.39181244]
[1643734514957,0.00164068,39028.0,39026.0,0.128111]
[1643734515157,0.00164068,39028.0,39026.0,0.064056]
[1643734515357,0.00164068,39028.0,39026.0,0.12811068]
[1643734516256,0.00164068,39028.0,39027.0,0.528106]
[1643734516458,0.00164068,39028.0,39027.0,0.128106]
[1643734516657,0.00164068,39028.0,39025.0,0.17961253]
[1643734516858,0.05304068,39028.0,39025.0,0.00150317]
[1643734517063,0.22440398,39027.0,39023.0,0.02164312]
[1643734517258,0.0514,39026.0,39025.0,0.00150318]
[1643734517504,1.26647822,39026.0,39025.0,0.00150318]
[1643734517703,1.378866,39026.0,39025.0,0.00150318]
[1643734518303,1.378866,39026.0,39023.0,0.02164312]
[1643734518504,0.735966,39026.0,39024.0,0.00150321]
[1643734518704,0.6429,39025.0,39024.0,0.00150321]
[1643734518906,1.10772668,39025.0,39024.0,0.00150321]
[1643734519505,1.10772668,39025.0,39016.0,0.24166199]
[1643734519808,0.21385456,39020.0,39019.0,0.02007743]
[1643734520007,0.26689524,39020.0,39015.0,0.3891]
[1643734520205,0.05304068,39020.0,39015.0,0.05]
[1643734520405,0.05304068,39020.0,39012.0,0.3618]
[1643734520706,0.05304068,39020.0,39010.0,0.26688087]
[1643734520707,0.20611752,39019.0,39010.0,0.26688087]
[1643734520910,0.0514,39018.0,39014.0,0.00150344]
[1643734521158,0.05304068,39018.0,39014.0,0.00150344]
[1643734521555,0.33444071,39018.0,39014.0,0.00150344]
[1643734521756,0.05304068,39018.0,39014.0,0.00150344]
[1643734521956,0.05304068,39018.0,39010.0,0.38096791]
[1643734522155,0.064091,39017.0,39014.0,0.00150344]
[1643734522357,0.0514,39016.0,39014.0,0.00150344]
[1643734522554,0.05304068,39016.0,39014.0,0.00150344]
[1643734523156,0.192262,39027.0,39015.0,1.364075]
[1643734523157,0.128149,39027.0,39015.0,1.364075]
[1643734523456,0.1136,39029.0,39016.0,0.15]
[1643734523654,0.01337549,39035.0,39016.0,0.15]
[1643734523854,0.01337549,39035.0,39017.0,0.1205]
[1643734524155,0.22852389,39032.0,39027.0,0.12647389]
[1643734524354,0.064064,39032.0,39027.0,0.12647389]
[1643734525207,0.064064,39032.0,39026.0,0.06406421]
[1643734525405,0.064064,39032.0,39026.0,0.05906421]
[1643734525807,0.064064,39032.0,39027.0,0.00150314]
[1643734526206,0.128126,39035.0,39027.0,0.00150314]
[1643734526407,0.128126,39035.0,39029.0,0.064058]
[1643734526605,0.07367601,39034.0,39029.0,0.064058]
[1643734526806,0.30659923,39034.0,39029.0,0.064058]
[1643734527005,0.30659923,39034.0,39030.0,0.00150305]
[1643734527612,0.347703,39033.0,39030.0,0.00150305]
[1643734527809,0.22055472,39032.0,39030.0,0.00150305]
[1643734528007,0.399103,39031.0,39022.0,0.12812436]
[1643734528208,0.128138,39032.0,39030.0,0.00150306]
[1643734528511,0.56183758,39031.0,39030.0,0.00150306]
[1643734528757,0.61323758,39031.0,39030.0,0.00150306]
[1643734528957,0.399103,39031.0,39030.0,0.00150306]
[1643734529159,0.399103,39031.0,39018.0,0.306271]
[1643734529357,0.0514,39031.0,39029.0,0.00150309]
[1643734529558,1.98368518,39030.0,39029.0,0.00150309]
[1643734529757,1.842003,39030.0,39029.0,0.00150309]
[1643734529957,1.042003,39030.0,39029.0,0.00150309]
[1643734530357,0.064083,39027.0,39014.0,0.16883385]
[1643734530560,0.064083,39027.0,39013.0,0.951181]
[1643734530561,0.0514,39026.0,39013.0,0.951181]
[1643734530758,0.0514,39026.0,39014.0,0.128145]
[1643734531157,0.0514,39026.0,39018.0,2.41593458]
[1643734531558,0.064078,39024.0,39018.0,2.41593458]
[1643734531758,0.064078,39024.0,39022.0,0.12432491]
[1643734532158,0.064078,39024.0,39023.0,0.22169957]
[1643734532406,0.1138,39037.0,39023.0,0.22169957]
[1643734532407,0.0514,39036.0,39023.0,0.22169957]
[1643734532607,0.064059,39035.0,39023.0,0.37169957]
[1643734532807,0.064059,39035.0,39024.0,0.16682915]
[1643734533007,0.12812,39034.0,39028.0,0.0015031]
[1643734533506,0.08847922,39032.0,39028.0,0.0015031]
[1643734533708,0.29575464,39029.0,39028.0,0.0015031]
[1643734533908,0.29575464,39029.0,39024.0,0.01950485]
[1643734533909,0.69485764,39029.0,39024.0,0.01950485]
[1643734534108,0.411784,39028.0,39024.0,0.01950485]
[1643734534308,0.0514,39027.0,39024.0,0.01950485]
[1643734534506,0.347703,39026.0,39018.0,0.12736901]
[1643734534707,0.0514,39025.0,39015.0,0.064079]
[1643734535409,0.0514,39025.0,39018.0,0.00150335]
[1643734535607,0.20778283,39025.0,39018.0,0.00150335]
[1643734535808,0.27186383,39025.0,39018.0,0.00150335]
[1643734536163,0.22794297,39020.0,39018.0,0.00150335]
[1643734536355,0.399103,39019.0,39012.0,0.139122]
[1643734536554,0.00744056,39027.0,39020.0,0.00150331]
[1643734536755,0.399103,39026.0,39020.0,0.00150331]
[1643734537354,0.66065636,39026.0,39020.0,0.00150331]
[1643734537555,0.66065636,39026.0,39013.0,0.16821186]
[1643734537754,0.66065636,39026.0,39021.0,0.00150328]
[1643734537959,0.1381749,39024.0,39021.0,0.00150328]
[1643734538156,0.399103,39023.0,39021.0,0.00150328]
[1643734538659,0.399103,39023.0,39016.0,0.19308218]
[1643734538855,0.399103,39023.0,39020.0,0.0015033]
[1643734538856,0.0514,39023.0,39020.0,0.0015033]
[1643734539056,0.347703,39022.0,39020.0,0.0015033]
[1643734539256,0.0514,39021.0,39020.0,0.0015033]
[1643734539908,0.0514,39021.0,39012.0,0.18825014]
[1643734540108,0.064086,39020.0,39019.0,0.00150334]
[1643734540309,0.62789725,39020.0,39019.0,0.00150334]
[1643734540513,0.67560025,39020.0,39019.0,0.00150334]
[1643734540708,0.399103,39020.0,39019.0,0.00150334]
[1643734540909,0.0514,39020.0,39019.0,0.00150334]
[1643734541110,0.0514,39020.0,39010.0,0.58708281]
[1643734541312,0.064088,39019.0,39018.0,0.00150336]
[1643734541510,0.115488,39019.0,39018.0,0.00150336]
[1643734542311,0.115488,39019.0,39008.0,0.14112508]
[1643734542511,0.115488,39019.0,39017.0,0.00150338]
[1643734542711,0.08245895,39018.0,39017.0,0.00150338]
[1643734543114,0.08245895,39018.0,39017.0,0.00108338]
[1643734543511,0.08245895,39018.0,39010.0,0.0724119]
[1643734543759,0.11549,39017.0,39012.0,0.02169076]
[1643734543956,0.11549,39017.0,39012.0,0.02127076]
[1643734544355,0.11549,39017.0,39012.0,0.02085076]
[1643734544555,0.11549,39017.0,39010.0,0.0724119]
[1643734544757,0.11549,39017.0,39008.0,0.2001589]
[1643734545059,0.11549,39017.0,39013.0,0.00052136]
[1643734545959,0.11549,39017.0,39010.0,0.1365009]
[1643734546557,0.11410188,39017.0,39010.0,0.1365009]
[1643734546758,0.11410188,39017.0,39010.0,0.0724119]
[1643734547159,0.11410188,39017.0,39009.0,0.05]
[1643734547402,0.14871909,39014.0,39009.0,0.05]
[1643734547603,0.0514,39013.0,39009.0,0.05]
[1643734548004,0.10233304,39011.0,39008.0,0.04085918]
[1643734548207,0.0514,39010.0,39008.0,0.04085918]
[1643734548607,0.05119976,39010.0,39008.0,0.04244126]
[1643734549606,0.05119976,39010.0,39008.0,0.04085918]
[1643734549808,0.05119976,39010.0,39007.0,0.42158209]
[1643734550009,0.77489829,39009.0,39007.0,0.00158209]
[1643734550209,0.0514,39008.0,39007.0,0.00158209]
[1643734550408,0.399103,39008.0,39007.0,0.00158209]
[1643734550811,0.399103,39008.0,39001.0,0.00632933]
[1643734550812,0.399103,39008.0,38999.0,0.14015398]
[1643734551012,0.0514,39008.0,39006.0,0.00158214]
[1643734551264,0.347703,39007.0,39006.0,0.00158214]
[1643734551664,0.0514,39007.0,39006.0,0.00158214]
[1643734551861,0.399103,39007.0,38999.0,0.14015398]
[1643734552064,0.0464,39007.0,38999.0,0.25425198]
[1643734552263,0.04085918,39009.0,39000.0,0.14363101]
[1643734552463,0.04085918,39009.0,39001.0,2.02161341]
[1643734552665,0.05112418,39009.0,39003.0,0.0498]
[1643734552865,0.04085918,39009.0,39008.0,0.14528232]
[1643734553762,0.04085918,39009.0,39005.0,0.00156373]
[1643734553964,0.0514,39008.0,39005.0,0.00156373]